[Event "Titled Tuesday Blitz October 5 2021"]
[White "Demchenko, Anton"]
[Black "Oparin, Grigoriy"]
[WhiteFideId "4160258"]
[BlackFideId "24125890"]
[WhiteElo "2583"]
[BlackElo "2604"]
[Result "0-1"]
[Round "05"]
[TimeControl "180+1"]
[Date "2021.10.05"]
[WhiteClock "0:00:40"]
[BlackClock "0:00:09"]

1. e4 {[%clk 0:03:00]}  c6 {[%clk 0:03:00]} 2. d4 {[%clk 0:02:58]}  d5 {[%clk 0:03:01]} 3. e5 {[%clk 0:02:59]}  c5 {[%clk 0:03:00]} 4. Nf3 {[%clk 0:02:58]}  e6 {[%clk 0:02:59]} 5. c3 {[%clk 0:02:58]}  Bd7 {[%clk 0:02:58]} 6. Bd3 {[%clk 0:02:58]}  Qb6 {[%clk 0:02:58]} 7. O-O {[%clk 0:02:56]}  Bb5 {[%clk 0:02:57]} 8. dxc5 {[%clk 0:02:56]}  Bxc5 {[%clk 0:02:57]} 9. b4 {[%clk 0:02:57]}  Be7 {[%clk 0:02:55]} 10. Be3 {[%clk 0:02:56]}  Qa6 {[%clk 0:02:56]} 11. Bxb5+ {[%clk 0:02:56]}  Qxb5 {[%clk 0:02:56]} 12. Nd4 {[%clk 0:02:43]}  Qd7 {[%clk 0:02:53]} 13. Qg4 {[%clk 0:02:43]}  g6 {[%clk 0:02:52]} 14. Nd2 {[%clk 0:02:42]}  h5 {[%clk 0:02:51]} 15. Qe2 {[%clk 0:02:39]}  Nc6 {[%clk 0:02:50]} 16. Nxc6 {[%clk 0:02:39]}  Qxc6 {[%clk 0:02:51]} 17. c4 {[%clk 0:02:33]}  Bxb4 {[%clk 0:02:32]} 18. cxd5 {[%clk 0:02:33]}  Qxd5 {[%clk 0:02:33]} 19. Nc4 {[%clk 0:02:33]}  b5 {[%clk 0:02:14]} 20. Nd6+ {[%clk 0:02:29]}  Bxd6 {[%clk 0:02:14]} 21. exd6 {[%clk 0:02:30]}  Nf6 {[%clk 0:02:02]} 22. Qb2 {[%clk 0:02:13]}  e5 {[%clk 0:01:56]} 23. Rfd1 {[%clk 0:02:11]}  Qe6 {[%clk 0:01:57]} 24. d7+ {[%clk 0:02:01]}  Nxd7 {[%clk 0:01:56]} 25. Qxb5 {[%clk 0:02:01]}  Rd8 {[%clk 0:01:40]} 26. Bxa7 {[%clk 0:01:35]}  O-O {[%clk 0:01:40]} 27. a4 {[%clk 0:01:36]}  Nf6 {[%clk 0:01:30]} 28. a5 {[%clk 0:01:23]}  Nd5 {[%clk 0:01:25]} 29. Qc4 {[%clk 0:01:17]}  Rd6 {[%clk 0:01:15]} 30. Bc5 {[%clk 0:00:55]}  Rc8 {[%clk 0:01:15]} 31. a6 {[%clk 0:00:56]}  Nf4 {[%clk 0:00:12]} 32. Qxe6 {[%clk 0:00:55]}  Rxd1+ {[%clk 0:00:12]} 33. Rxd1 {[%clk 0:00:56]}  Nxe6 {[%clk 0:00:13]} 34. Bb6 {[%clk 0:00:56]}  Ra8 {[%clk 0:00:09]} 35. a7 {[%clk 0:00:56]}  Nd4 {[%clk 0:00:09]} 36. Rc1 {[%clk 0:00:40]}  Ne2+ {[%clk 0:00:09]} 0-1


[Site "https://www.chess.com"]

[Event "Titled Tuesday Blitz October 5 2021"]
[White "Dudzinski, Pawel"]
[Black "Martinez Reyes, Pedro Ramon"]
[WhiteFideId "1117890"]
[BlackFideId "3901807"]
[WhiteElo "2193"]
[BlackElo "2410"]
[Result "0-1"]
[Round "05"]
[TimeControl "180+1"]
[Date "2021.10.05"]
[WhiteClock "0:00:03"]
[BlackClock "0:01:00"]

1. e4 {[%clk 0:02:45]}  c5 {[%clk 0:02:59]} 2. Nf3 {[%clk 0:02:45]}  Nc6 {[%clk 0:02:55]} 3. d4 {[%clk 0:02:45]}  cxd4 {[%clk 0:02:56]} 4. Nxd4 {[%clk 0:02:46]}  d5 {[%clk 0:02:56]} 5. Nxc6 {[%clk 0:02:37]}  bxc6 {[%clk 0:02:55]} 6. exd5 {[%clk 0:02:37]}  Qxd5 {[%clk 0:02:56]} 7. Qe2 {[%clk 0:02:16]}  e5 {[%clk 0:02:53]} 8. Nc3 {[%clk 0:02:15]}  Bb4 {[%clk 0:02:52]} 9. Bd2 {[%clk 0:02:16]}  Bxc3 {[%clk 0:02:52]} 10. Bxc3 {[%clk 0:02:17]}  f6 {[%clk 0:02:45]} 11. Rd1 {[%clk 0:02:03]}  Qe6 {[%clk 0:02:43]} 12. Qe4 {[%clk 0:01:48]}  Ne7 {[%clk 0:02:38]} 13. Bc4 {[%clk 0:01:48]}  Qg4 {[%clk 0:02:26]} 14. Qxg4 {[%clk 0:01:33]}  Bxg4 {[%clk 0:02:27]} 15. f3 {[%clk 0:01:33]}  Bf5 {[%clk 0:02:26]} 16. Rd2 {[%clk 0:01:34]}  Rd8 {[%clk 0:02:23]} 17. Kd1 {[%clk 0:01:24]}  Nd5 {[%clk 0:02:21]} 18. Ba5 {[%clk 0:01:24]}  Ne3+ {[%clk 0:02:20]} 19. Ke2 {[%clk 0:01:21]}  Rxd2+ {[%clk 0:02:19]} 20. Kxe3 {[%clk 0:01:20]}  Rxc2 {[%clk 0:02:16]} 21. Bc3 {[%clk 0:01:17]}  Rxg2 {[%clk 0:02:00]} 22. Be2 {[%clk 0:01:14]}  O-O {[%clk 0:01:56]} 23. Be1 {[%clk 0:01:08]}  Rd8 {[%clk 0:01:48]} 24. Bg3 {[%clk 0:01:07]}  h5 {[%clk 0:01:46]} 25. Rc1 {[%clk 0:00:48]}  h4 {[%clk 0:01:34]} 26. Bxh4 {[%clk 0:00:47]}  Rxh2 {[%clk 0:01:35]} 27. Bf2 {[%clk 0:00:31]}  Rb8 {[%clk 0:01:29]} 28. b3 {[%clk 0:00:29]}  Bd7 {[%clk 0:01:26]} 29. Bc4+ {[%clk 0:00:21]}  Kh7 {[%clk 0:01:25]} 30. Bg3 {[%clk 0:00:15]}  Rh3 {[%clk 0:01:24]} 31. Kf2 {[%clk 0:00:15]}  g5 {[%clk 0:01:19]} 32. Kg2 {[%clk 0:00:12]}  Kg6 {[%clk 0:01:17]} 33. Rd1 {[%clk 0:00:10]}  Bf5 {[%clk 0:01:16]} 34. Bd3 {[%clk 0:00:09]}  Rh7 {[%clk 0:01:12]} 35. Bc4 {[%clk 0:00:09]}  Rd7 {[%clk 0:01:11]} 36. Rxd7 {[%clk 0:00:07]}  Bxd7 {[%clk 0:01:12]} 37. Bf2 {[%clk 0:00:08]}  a5 {[%clk 0:01:10]} 38. a4 {[%clk 0:00:08]}  Re8 {[%clk 0:01:04]} 39. Bb6 {[%clk 0:00:07]}  Be6 {[%clk 0:01:04]} 40. Bxe6 {[%clk 0:00:06]}  Rxe6 {[%clk 0:01:05]} 41. Bxa5 {[%clk 0:00:06]}  c5 {[%clk 0:01:02]} 42. b4 {[%clk 0:00:04]}  Ra6 {[%clk 0:01:00]} 43. bxc5 {[%clk 0:00:01]}  Rxa5 {[%clk 0:01:00]} 44. c6 {[%clk 0:00:02]}  Rc5 {[%clk 0:01:00]} 45. c7 {[%clk 0:00:03]}  Rxc7 {[%clk 0:01:00]} 0-1


[Site "https://www.chess.com"]

[Event "Titled Tuesday Blitz October 5 2021"]
[White "Ferreira, Vitor Hugo Vieira"]
[Black "Iskusnyh, Sergei"]
[WhiteFideId "2119765"]
[BlackFideId "4120027"]
[WhiteElo "2216"]
[BlackElo "2492"]
[Result "0-1"]
[Round "05"]
[TimeControl "180+1"]
[Date "2021.10.05"]
[WhiteClock "0:00:08"]
[BlackClock "0:00:12"]

1. Nf3 {[%clk 0:03:00]}  d5 {[%clk 0:02:59]} 2. g3 {[%clk 0:03:01]}  Nf6 {[%clk 0:02:58]} 3. Bg2 {[%clk 0:03:01]}  c6 {[%clk 0:02:58]} 4. O-O {[%clk 0:03:01]}  Bf5 {[%clk 0:02:58]} 5. c4 {[%clk 0:03:02]}  e6 {[%clk 0:02:58]} 6. cxd5 {[%clk 0:03:02]}  exd5 {[%clk 0:02:58]} 7. d3 {[%clk 0:03:01]}  Be7 {[%clk 0:02:58]} 8. Nc3 {[%clk 0:03:02]}  O-O {[%clk 0:02:56]} 9. Nd4 {[%clk 0:03:02]}  Bd7 {[%clk 0:02:41]} 10. e4 {[%clk 0:03:01]}  dxe4 {[%clk 0:02:39]} 11. dxe4 {[%clk 0:03:01]}  Na6 {[%clk 0:02:35]} 12. e5 {[%clk 0:02:59]}  Ne8 {[%clk 0:02:21]} 13. Qe2 {[%clk 0:02:59]}  Bc5 {[%clk 0:02:00]} 14. Nb3 {[%clk 0:02:54]}  Bb6 {[%clk 0:01:57]} 15. h4 {[%clk 0:02:36]}  Be6 {[%clk 0:01:48]} 16. Bg5 {[%clk 0:02:36]}  Qc7 {[%clk 0:01:43]} 17. Rad1 {[%clk 0:02:33]}  Bxb3 {[%clk 0:01:39]} 18. axb3 {[%clk 0:02:30]}  Nc5 {[%clk 0:01:39]} 19. b4 {[%clk 0:02:26]}  Ne6 {[%clk 0:01:39]} 20. b5 {[%clk 0:02:25]}  Nd4 {[%clk 0:01:17]} 21. Qg4 {[%clk 0:02:19]}  Qxe5 {[%clk 0:01:12]} 22. Rfe1 {[%clk 0:02:07]}  Qf5 {[%clk 0:01:08]} 23. Rxd4 {[%clk 0:02:05]}  Nd6 {[%clk 0:00:58]} 24. Qxf5 {[%clk 0:01:35]}  Nxf5 {[%clk 0:00:57]} 25. Rd3 {[%clk 0:01:33]}  h6 {[%clk 0:00:57]} 26. Bf4 {[%clk 0:01:30]}  Rad8 {[%clk 0:00:56]} 27. Rxd8 {[%clk 0:01:28]}  Rxd8 {[%clk 0:00:56]} 28. bxc6 {[%clk 0:01:27]}  bxc6 {[%clk 0:00:56]} 29. Bxc6 {[%clk 0:01:26]}  Nd4 {[%clk 0:00:46]} 30. Re8+ {[%clk 0:01:21]}  Rxe8 {[%clk 0:00:46]} 31. Bxe8 {[%clk 0:01:22]}  Ne6 {[%clk 0:00:38]} 32. Be3 {[%clk 0:01:19]}  Bxe3 {[%clk 0:00:37]} 33. fxe3 {[%clk 0:01:20]}  Kf8 {[%clk 0:00:36]} 34. Bc6 {[%clk 0:01:18]}  Ke7 {[%clk 0:00:35]} 35. Nb5 {[%clk 0:01:18]}  a5 {[%clk 0:00:34]} 36. Nd4 {[%clk 0:01:11]}  Nc5 {[%clk 0:00:34]} 37. Bb5 {[%clk 0:01:03]}  Kf6 {[%clk 0:00:29]} 38. Bc4 {[%clk 0:01:01]}  g5 {[%clk 0:00:29]} 39. hxg5+ {[%clk 0:01:00]}  hxg5 {[%clk 0:00:28]} 40. Nb3 {[%clk 0:01:01]}  Na4 {[%clk 0:00:27]} 41. Nxa5 {[%clk 0:00:58]}  Nxb2 {[%clk 0:00:27]} 42. Bb5 {[%clk 0:00:57]}  Nd1 {[%clk 0:00:25]} 43. Nc4 {[%clk 0:00:54]}  Nc3 {[%clk 0:00:23]} 44. Bc6 {[%clk 0:00:53]}  Kf5 {[%clk 0:00:22]} 45. Kf2 {[%clk 0:00:48]}  f6 {[%clk 0:00:21]} 46. Kf3 {[%clk 0:00:45]}  Ke6 {[%clk 0:00:19]} 47. g4 {[%clk 0:00:44]}  Nd1 {[%clk 0:00:16]} 48. Be4 {[%clk 0:00:37]}  Nc3 {[%clk 0:00:15]} 49. Bf5+ {[%clk 0:00:37]}  Kd5 {[%clk 0:00:14]} 50. Nd2 {[%clk 0:00:37]}  Ke5 {[%clk 0:00:11]} 51. Nc4+ {[%clk 0:00:33]}  Kd5 {[%clk 0:00:10]} 52. Nb6+ {[%clk 0:00:31]}  Kd6 {[%clk 0:00:10]} 53. Nc8+ {[%clk 0:00:24]}  Kd5 {[%clk 0:00:08]} 54. Ne7+ {[%clk 0:00:24]}  Kd6 {[%clk 0:00:08]} 55. Nc6 {[%clk 0:00:19]}  Kxc6 {[%clk 0:00:08]} 56. e4 {[%clk 0:00:12]}  Kd6 {[%clk 0:00:08]} 57. Ke3 {[%clk 0:00:13]}  Ke5 {[%clk 0:00:08]} 58. Bh7 {[%clk 0:00:13]}  Nb5 {[%clk 0:00:08]} 59. Bf5 {[%clk 0:00:13]}  Nd4 {[%clk 0:00:08]} 60. Bh7 {[%clk 0:00:13]}  Ne6 {[%clk 0:00:08]} 61. Bf5 {[%clk 0:00:13]}  Nf4 {[%clk 0:00:09]} 62. Bh7 {[%clk 0:00:14]}  Ng2+ {[%clk 0:00:09]} 63. Kf3 {[%clk 0:00:14]}  Nh4+ {[%clk 0:00:09]} 64. Ke3 {[%clk 0:00:14]}  Ng2+ {[%clk 0:00:09]} 65. Kf3 {[%clk 0:00:14]}  Ne1+ {[%clk 0:00:10]} 66. Ke3 {[%clk 0:00:14]}  Nc2+ {[%clk 0:00:10]} 67. Kd3 {[%clk 0:00:14]}  Nb4+ {[%clk 0:00:11]} 68. Ke3 {[%clk 0:00:14]}  Nc6 {[%clk 0:00:10]} 69. Bf5 {[%clk 0:00:14]}  Nb4 {[%clk 0:00:10]} 70. Bh7 {[%clk 0:00:14]}  Na6 {[%clk 0:00:11]} 71. Bf5 {[%clk 0:00:14]}  Nc5 {[%clk 0:00:11]} 72. Bh7 {[%clk 0:00:14]}  Nb7 {[%clk 0:00:12]} 73. Bf5 {[%clk 0:00:14]}  Nd6 {[%clk 0:00:12]} 74. Bh7 {[%clk 0:00:14]}  Ke6 {[%clk 0:00:12]} 75. Bf5+ {[%clk 0:00:14]}  Nxf5+ {[%clk 0:00:11]} 76. gxf5+ {[%clk 0:00:09]}  Ke5 {[%clk 0:00:11]} 77. Kf3 {[%clk 0:00:09]}  Kd4 {[%clk 0:00:11]} 78. e5 {[%clk 0:00:07]}  Kxe5 {[%clk 0:00:11]} 79. Kg4 {[%clk 0:00:08]}  Ke4 {[%clk 0:00:11]} 80. Kh5 {[%clk 0:00:08]}  Kxf5 {[%clk 0:00:12]} 0-1


[Site "https://www.chess.com"]

[Event "Titled Tuesday Blitz October 5 2021"]
[White "Garcia Blanco, Omar"]
[Black "Koellner, Ruben Gideon"]
[WhiteFideId "2287153"]
[BlackFideId "12993093"]
[WhiteElo "2291"]
[BlackElo "2557"]
[Result "1-0"]
[Round "05"]
[TimeControl "180+1"]
[Date "2021.10.05"]
[WhiteClock "0:00:11"]
[BlackClock "0:00:01"]

1. e4 {[%clk 0:03:00]}  d6 {[%clk 0:02:54]} 2. d4 {[%clk 0:02:59]}  Nf6 {[%clk 0:02:46]} 3. Nc3 {[%clk 0:02:58]}  e5 {[%clk 0:02:45]} 4. Nf3 {[%clk 0:02:54]}  Nbd7 {[%clk 0:02:44]} 5. Rg1 {[%clk 0:02:45]}  h6 {[%clk 0:02:40]} 6. g4 {[%clk 0:02:40]}  c6 {[%clk 0:02:40]} 7. h4 {[%clk 0:02:35]}  exd4 {[%clk 0:02:38]} 8. Nxd4 {[%clk 0:02:33]}  Ne5 {[%clk 0:02:37]} 9. f3 {[%clk 0:02:33]}  Qb6 {[%clk 0:02:31]} 10. Be2 {[%clk 0:02:12]}  d5 {[%clk 0:02:23]} 11. exd5 {[%clk 0:02:08]}  Nxd5 {[%clk 0:02:05]} 12. Nxd5 {[%clk 0:02:07]}  cxd5 {[%clk 0:02:05]} 13. c3 {[%clk 0:02:05]}  Bc5 {[%clk 0:02:02]} 14. Bf4 {[%clk 0:01:45]}  Nc6 {[%clk 0:01:56]} 15. Be3 {[%clk 0:01:34]}  Qxb2 {[%clk 0:01:45]} 16. Kf2 {[%clk 0:00:55]}  O-O {[%clk 0:01:29]} 17. g5 {[%clk 0:00:47]}  h5 {[%clk 0:01:18]} 18. g6 {[%clk 0:00:45]}  fxg6 {[%clk 0:01:14]} 19. Rxg6 {[%clk 0:00:42]}  Ne5 {[%clk 0:01:04]} 20. Rb1 {[%clk 0:00:19]}  Qxa2 {[%clk 0:00:55]} 21. Ra1 {[%clk 0:00:19]}  Qb2 {[%clk 0:00:47]} 22. Rb1 {[%clk 0:00:19]}  Qxc3 {[%clk 0:00:32]} 23. Rc1 {[%clk 0:00:19]}  Qa5 {[%clk 0:00:31]} 24. Rxc5 {[%clk 0:00:19]}  Qxc5 {[%clk 0:00:20]} 25. Rxg7+ {[%clk 0:00:19]}  Kxg7 {[%clk 0:00:13]} 26. Ne6+ {[%clk 0:00:18]}  Bxe6 {[%clk 0:00:13]} 27. Bxc5 {[%clk 0:00:18]}  Rf5 {[%clk 0:00:08]} 28. Bd4 {[%clk 0:00:19]}  Kf7 {[%clk 0:00:06]} 29. Qa1 {[%clk 0:00:18]}  Ng4+ {[%clk 0:00:04]} 30. Kg3 {[%clk 0:00:19]}  Nf6 {[%clk 0:00:05]} 31. Bd3 {[%clk 0:00:19]}  Rg8+ {[%clk 0:00:05]} 32. Kf2 {[%clk 0:00:17]}  Rf4 {[%clk 0:00:05]} 33. Be5 {[%clk 0:00:17]}  Ng4+ {[%clk 0:00:04]} 34. Ke2 {[%clk 0:00:16]}  Nxe5 {[%clk 0:00:03]} 35. Qxe5 {[%clk 0:00:17]}  Rg2+ {[%clk 0:00:03]} 36. Ke3 {[%clk 0:00:17]}  Rf6 {[%clk 0:00:03]} 37. Qxh5+ {[%clk 0:00:17]}  Ke7 {[%clk 0:00:03]} 38. Qe5 {[%clk 0:00:16]}  a5 {[%clk 0:00:01]} 39. Qc7+ {[%clk 0:00:16]}  Bd7 {[%clk 0:00:02]} 40. Bb5 {[%clk 0:00:15]}  Re6+ {[%clk 0:00:03]} 41. Kf4 {[%clk 0:00:15]}  Rd6 {[%clk 0:00:03]} 42. Qc5 {[%clk 0:00:13]}  Rg7 {[%clk 0:00:03]} 43. Bd3 {[%clk 0:00:13]}  Rf7+ {[%clk 0:00:04]} 44. Ke3 {[%clk 0:00:13]}  d4+ {[%clk 0:00:03]} 45. Kf2 {[%clk 0:00:13]}  Rf6 {[%clk 0:00:02]} 46. h5 {[%clk 0:00:13]}  Be6 {[%clk 0:00:02]} 47. Bg6 {[%clk 0:00:13]}  Bd5 {[%clk 0:00:02]} 48. Qc7+ {[%clk 0:00:13]}  Rd7 {[%clk 0:00:03]} 49. Qe5+ {[%clk 0:00:14]}  Re6 {[%clk 0:00:03]} 50. Qg5+ {[%clk 0:00:14]}  Kd6 {[%clk 0:00:03]} 51. h6 {[%clk 0:00:15]}  d3 {[%clk 0:00:02]} 52. Bxd3 {[%clk 0:00:14]}  Rf7 {[%clk 0:00:01]} 53. f4 {[%clk 0:00:13]}  Ref6 {[%clk 0:00:01]} 54. f5 {[%clk 0:00:12]}  Be6 {[%clk 0:00:01]} 55. Qg3+ {[%clk 0:00:11]}  Ke7 {[%clk 0:00:01]} 56. Qe5 {[%clk 0:00:11]} 1-0


[Site "https://www.chess.com"]

[Event "Titled Tuesday Blitz October 5 2021"]
[White "Goncalves, Ivan Mesquita V"]
[Black "Kezin, Roman"]
[WhiteFideId "2114224"]
[BlackFideId "24124621"]
[WhiteElo "2299"]
[BlackElo "2557"]
[Result "1-0"]
[Round "05"]
[TimeControl "180+1"]
[Date "2021.10.05"]
[WhiteClock "0:00:02"]
[BlackClock "0:00:46"]

1. d4 {[%clk 0:03:00]}  d5 {[%clk 0:02:59]} 2. Nf3 {[%clk 0:03:01]}  Nf6 {[%clk 0:02:59]} 3. Bf4 {[%clk 0:03:01]}  c5 {[%clk 0:03:00]} 4. e3 {[%clk 0:03:01]}  Nc6 {[%clk 0:03:00]} 5. Nbd2 {[%clk 0:03:01]}  Nh5 {[%clk 0:03:00]} 6. dxc5 {[%clk 0:02:56]}  Nxf4 {[%clk 0:02:58]} 7. exf4 {[%clk 0:02:56]}  Qa5 {[%clk 0:02:59]} 8. Bd3 {[%clk 0:02:55]}  Qxc5 {[%clk 0:02:57]} 9. O-O {[%clk 0:02:55]}  g6 {[%clk 0:02:56]} 10. Re1 {[%clk 0:02:50]}  Bg7 {[%clk 0:02:56]} 11. c3 {[%clk 0:02:50]}  O-O {[%clk 0:02:53]} 12. Ne5 {[%clk 0:02:47]}  Qd6 {[%clk 0:02:40]} 13. Ndf3 {[%clk 0:02:35]}  f6 {[%clk 0:02:40]} 14. Nxc6 {[%clk 0:02:33]}  bxc6 {[%clk 0:02:41]} 15. Qe2 {[%clk 0:02:25]}  Re8 {[%clk 0:02:41]} 16. c4 {[%clk 0:02:15]}  e5 {[%clk 0:02:41]} 17. fxe5 {[%clk 0:02:05]}  fxe5 {[%clk 0:02:42]} 18. cxd5 {[%clk 0:02:01]}  cxd5 {[%clk 0:02:43]} 19. Bb5 {[%clk 0:01:53]}  Re7 {[%clk 0:02:43]} 20. Rad1 {[%clk 0:01:52]}  Bb7 {[%clk 0:02:42]} 21. h4 {[%clk 0:01:42]}  Rf8 {[%clk 0:02:41]} 22. Ba4 {[%clk 0:01:31]}  Kh8 {[%clk 0:02:38]} 23. Bb3 {[%clk 0:01:31]}  e4 {[%clk 0:02:32]} 24. Nd4 {[%clk 0:01:05]}  Qb6 {[%clk 0:02:22]} 25. Qe3 {[%clk 0:00:57]}  Be5 {[%clk 0:02:18]} 26. g3 {[%clk 0:00:49]}  Qf6 {[%clk 0:02:14]} 27. Kg2 {[%clk 0:00:32]}  Ref7 {[%clk 0:02:07]} 28. Re2 {[%clk 0:00:31]}  Ba6 {[%clk 0:02:05]} 29. Red2 {[%clk 0:00:24]}  Bd3 {[%clk 0:02:04]} 30. Nc2 {[%clk 0:00:14]}  d4 {[%clk 0:02:04]} 31. Qe1 {[%clk 0:00:14]}  Qf3+ {[%clk 0:02:00]} 32. Kg1 {[%clk 0:00:14]}  e3 {[%clk 0:01:57]} 33. Bxf7 {[%clk 0:00:11]}  Rxf7 {[%clk 0:01:58]} 34. Kh2 {[%clk 0:00:06]}  Be4 {[%clk 0:01:53]} 35. fxe3 {[%clk 0:00:05]}  Qg4 {[%clk 0:01:43]} 36. Rg2 {[%clk 0:00:04]}  d3 {[%clk 0:01:20]} 37. Nd4 {[%clk 0:00:03]}  Qxh4+ {[%clk 0:01:10]} 38. Kg1 {[%clk 0:00:03]}  Qh3 {[%clk 0:01:11]} 39. Qd2 {[%clk 0:00:02]}  Bxg3 {[%clk 0:01:09]} 40. Ne6 {[%clk 0:00:01]}  Bxg2 {[%clk 0:01:01]} 41. Qc3+ {[%clk 0:00:01]}  Be5 {[%clk 0:00:44]} 42. Qxe5+ {[%clk 0:00:02]}  Kg8 {[%clk 0:00:45]} 43. Qb8+ {[%clk 0:00:02]}  Rf8 {[%clk 0:00:46]} 44. Qxf8# {[%clk 0:00:02]} 1-0


[Site "https://www.chess.com"]

[Event "Titled Tuesday Blitz October 5 2021"]
[White "Gontcharov, Vladislav"]
[Black "Stribuk, Artiom"]
[WhiteFideId "4123492"]
[BlackFideId "13515659"]
[WhiteElo "2503"]
[BlackElo "2224"]
[Result "1-0"]
[Round "05"]
[TimeControl "180+1"]
[Date "2021.10.05"]
[WhiteClock "0:00:28"]
[BlackClock "0:00:03"]

1. e4 {[%clk 0:03:00]}  c5 {[%clk 0:03:00]} 2. Nf3 {[%clk 0:02:57]}  Nc6 {[%clk 0:02:59]} 3. d4 {[%clk 0:02:57]}  cxd4 {[%clk 0:02:59]} 4. Nxd4 {[%clk 0:02:58]}  Nf6 {[%clk 0:02:59]} 5. Nc3 {[%clk 0:02:56]}  e5 {[%clk 0:02:59]} 6. Ndb5 {[%clk 0:02:55]}  d6 {[%clk 0:02:59]} 7. Bg5 {[%clk 0:02:56]}  a6 {[%clk 0:02:59]} 8. Na3 {[%clk 0:02:56]}  b5 {[%clk 0:03:00]} 9. Nd5 {[%clk 0:02:55]}  Be7 {[%clk 0:03:00]} 10. Bxf6 {[%clk 0:02:55]}  Bxf6 {[%clk 0:03:01]} 11. c4 {[%clk 0:02:55]}  b4 {[%clk 0:03:01]} 12. Nc2 {[%clk 0:02:55]}  O-O {[%clk 0:03:01]} 13. h4 {[%clk 0:02:56]}  a5 {[%clk 0:02:47]} 14. g3 {[%clk 0:02:51]}  Be6 {[%clk 0:02:46]} 15. Bh3 {[%clk 0:02:51]}  a4 {[%clk 0:02:45]} 16. Ncxb4 {[%clk 0:02:40]}  Nxb4 {[%clk 0:02:44]} 17. Nxb4 {[%clk 0:02:40]}  Bxc4 {[%clk 0:02:33]} 18. Rc1 {[%clk 0:02:34]}  Bb5 {[%clk 0:02:02]} 19. a3 {[%clk 0:02:28]}  g6 {[%clk 0:01:44]} 20. Bf1 {[%clk 0:02:16]}  Bd7 {[%clk 0:01:15]} 21. Bc4 {[%clk 0:02:12]}  Be6 {[%clk 0:01:06]} 22. Bd5 {[%clk 0:02:02]}  Rc8 {[%clk 0:00:55]} 23. Rxc8 {[%clk 0:01:53]}  Qxc8 {[%clk 0:00:52]} 24. Bxe6 {[%clk 0:01:52]}  fxe6 {[%clk 0:00:51]} 25. O-O {[%clk 0:01:52]}  Qd7 {[%clk 0:00:43]} 26. Kg2 {[%clk 0:01:45]}  Rc8 {[%clk 0:00:38]} 27. Qd3 {[%clk 0:01:44]}  Be7 {[%clk 0:00:29]} 28. Rd1 {[%clk 0:01:40]}  Qa7 {[%clk 0:00:23]} 29. Qe2 {[%clk 0:01:31]}  Qb6 {[%clk 0:00:21]} 30. Qg4 {[%clk 0:01:24]}  Kf7 {[%clk 0:00:18]} 31. h5 {[%clk 0:01:24]}  g5 {[%clk 0:00:15]} 32. h6 {[%clk 0:01:24]}  Rg8 {[%clk 0:00:14]} 33. Rd3 {[%clk 0:01:22]}  Rg6 {[%clk 0:00:12]} 34. Rf3+ {[%clk 0:01:18]}  Bf6 {[%clk 0:00:13]} 35. Qh5 {[%clk 0:01:12]}  Qd4 {[%clk 0:00:13]} 36. Rc3 {[%clk 0:01:07]}  Qxe4+ {[%clk 0:00:11]} 37. Kh2 {[%clk 0:01:07]}  Qf5 {[%clk 0:00:09]} 38. Rc7+ {[%clk 0:01:01]}  Be7 {[%clk 0:00:06]} 39. Kg2 {[%clk 0:00:57]}  Qe4+ {[%clk 0:00:05]} 40. Qf3+ {[%clk 0:00:57]}  Qxf3+ {[%clk 0:00:05]} 41. Kxf3 {[%clk 0:00:58]}  Ke8 {[%clk 0:00:05]} 42. Nc6 {[%clk 0:00:57]}  Bf8 {[%clk 0:00:05]} 43. Rxh7 {[%clk 0:00:56]}  Rxh6 {[%clk 0:00:05]} 44. Ra7 {[%clk 0:00:54]}  Rf6+ {[%clk 0:00:06]} 45. Ke2 {[%clk 0:00:53]}  d5 {[%clk 0:00:06]} 46. Ra8+ {[%clk 0:00:50]}  Kf7 {[%clk 0:00:06]} 47. Nxe5+ {[%clk 0:00:50]}  Ke7 {[%clk 0:00:04]} 48. Rxa4 {[%clk 0:00:46]}  Kd6 {[%clk 0:00:05]} 49. Nd3 {[%clk 0:00:43]}  Be7 {[%clk 0:00:04]} 50. Ra6+ {[%clk 0:00:42]}  Kc7 {[%clk 0:00:04]} 51. b4 {[%clk 0:00:41]}  Kb7 {[%clk 0:00:05]} 52. Ra5 {[%clk 0:00:39]}  Bd6 {[%clk 0:00:04]} 53. Nc5+ {[%clk 0:00:38]}  Kc6 {[%clk 0:00:03]} 54. Ra6+ {[%clk 0:00:38]}  Kc7 {[%clk 0:00:04]} 55. a4 {[%clk 0:00:35]}  Bxc5 {[%clk 0:00:04]} 56. bxc5 {[%clk 0:00:35]}  g4 {[%clk 0:00:05]} 57. Rd6 {[%clk 0:00:33]}  Rf3 {[%clk 0:00:02]} 58. a5 {[%clk 0:00:30]}  Ra3 {[%clk 0:00:02]} 59. a6 {[%clk 0:00:30]}  Ra2+ {[%clk 0:00:02]} 60. Kf1 {[%clk 0:00:30]}  Rc2 {[%clk 0:00:02]} 61. Rxe6 {[%clk 0:00:29]}  Rxc5 {[%clk 0:00:03]} 62. Rg6 {[%clk 0:00:29]}  Ra5 {[%clk 0:00:03]} 63. Rg7+ {[%clk 0:00:28]}  Kd6 {[%clk 0:00:03]} 64. Rxg4 {[%clk 0:00:28]}  Rxa6 {[%clk 0:00:03]} 65. Rg6+ {[%clk 0:00:28]} 1-0


[Site "https://www.chess.com"]